fUST/lending_fUST_20250104
["ID","MTS","AMOUNT","RATE_DAILY","PERIOD"]
[347581096,1735924246305,-301.57833537,0.0001957,2]
[347581097,1735924246317,-897.11,0.00019578,3]
[347581098,1735924246329,-13619.39826406,0.00019579,2]
[347581099,1735924246343,-1419.08951334,0.00019626,2]
[347581100,1735924246352,-897.11,0.00019725,3]
[347581101,1735924246362,-897.11,0.00019725,3]
[347581102,1735924246373,-897.11,0.00019725,3]
[347581103,1735924246382,-202.53785662,0.00019725,2]
[347581104,1735924246391,-500.0,0.00019725,2]
[347581105,1735924246400,-187.81984358,0.00019725,2]
[347581106,1735924246409,-152.70230947,0.00019725,2]
[347581107,1735924246419,-500.0,0.00019726,3]
[347581108,1735924246427,-602.29,0.00019726,3]
[347581110,1735924246437,-500.0,0.00019726,3]
[347581112,1735924246446,-500.0,0.00019726,3]
[347581114,1735924246455,-500.0,0.00019726,3]
[347581116,1735924246465,-500.0,0.00019726,3]
[347581118,1735924246474,-500.0,0.00019726,3]
[347581120,1735924246486,-500.0,0.00019726,3]
[347581123,1735924246495,-500.0,0.00019726,3]
[347581124,1735924246506,-500.0,0.00019726,3]
[347581126,1735924246515,-500.0,0.00019726,3]
[347581128,1735924246525,-500.0,0.00019726,3]
[347581130,1735924246535,-500.0,0.00019726,3]
[347581133,1735924246545,-500.0,0.00019726,3]
[347581134,1735924246556,-592.26312305,0.00019726,3]
[347581136,1735924246566,-500.0,0.00019726,3]
[347581138,1735924246575,-1037.83,0.00019726,3]
[347581140,1735924246585,-500.0,0.00019726,3]
[347581142,1735924246595,-2742.66,0.00019726,3]
[347581144,1735924246605,-500.0,0.00019726,3]
[347581147,1735924246615,-324.22,0.00019726,3]
[347581148,1735924246625,-607.65,0.00019726,3]
[347581151,1735924246635,-500.0,0.00019726,2]
[347581153,1735924246645,-500.0,0.00019726,3]
[347581154,1735924246654,-500.0,0.00019726,3]
[347581155,1735924246664,-500.0,0.00019726,3]
[347581156,1735924246673,-500.0,0.00019726,3]
[347581157,1735924246683,-500.0,0.00019726,3]
[347581158,1735924246693,-500.0,0.00019726,3]
[347581159,1735924246703,-500.0,0.00019726,3]
[347581160,1735924246712,-500.0,0.00019726,3]
[347581161,1735924246725,-500.0,0.00019726,3]
[347581162,1735924246738,-1185.66,0.00019726,3]
[347581163,1735924246750,-500.0,0.00019726,3]
[347581164,1735924246761,-500.0,0.00019726,3]
[347581165,1735924246771,-500.0,0.00019726,3]
[347581166,1735924246780,-500.0,0.00019726,3]
[347581167,1735924246790,-959.66,0.00019726,3]
[347581168,1735924246800,-500.0,0.00019726,3]
[347581169,1735924246810,-500.0,0.00019726,3]
[347581170,1735924246819,-275.20620864,0.00019726,3]
[347581171,1735924246829,-500.0,0.00019726,3]
[347581172,1735924246839,-500.0,0.00019726,3]
[347581173,1735924246848,-500.0,0.00019726,3]
[347581174,1735924246858,-500.0,0.00019726,3]
[347581175,1735924246867,-961.58,0.00019726,3]
[347581176,1735924246878,-500.0,0.00019726,3]
[347581177,1735924246888,-500.0,0.00019726,3]
[347581178,1735924246897,-500.0,0.00019726,3]
[347581179,1735924246906,-500.0,0.00019726,3]
[347581180,1735924246916,-4013.46,0.00019726,3]
[347581181,1735924246925,-500.0,0.00019726,3]
[347581182,1735924246935,-500.0,0.00019726,3]
[347581183,1735924246945,-500.0,0.00019726,3]
[347581184,1735924246954,-994.81,0.00019726,3]
[347581185,1735924246963,-818.27,0.00019726,3]
[347581186,1735924246973,-500.0,0.00019726,3]
[347581187,1735924246982,-500.0,0.00019726,3]
[347581188,1735924246991,-500.0,0.00019726,3]
[347581189,1735924247001,-544.85,0.00019726,3]
[347581190,1735924247010,-500.0,0.00019726,3]
[347581191,1735924247020,-500.0,0.00019726,3]
[347581192,1735924247029,-500.0,0.00019726,3]
[347581193,1735924247039,-500.0,0.00019726,3]
[347581194,1735924247048,-500.0,0.00019726,3]
[347581195,1735924247058,-500.0,0.00019726,3]
[347581196,1735924247067,-728.95,0.00019726,3]
[347581197,1735924247077,-295.72456444,0.00019726,3]
[347581198,1735924247087,-500.0,0.00019726,3]
[347581199,1735924247097,-500.0,0.00019726,3]
[347581200,1735924247107,-500.0,0.00019726,3]
[347581201,1735924247116,-609.31,0.00019726,3]
[347581202,1735924247127,-500.0,0.00019726,3]
[347581203,1735924247136,-500.0,0.00019726,3]
[347581204,1735924247145,-500.0,0.00019726,3]
[347581205,1735924247155,-500.0,0.00019726,3]
[347581206,1735924247164,-500.0,0.00019726,3]
[347581207,1735924247174,-2229.74,0.00019726,3]
[347581208,1735924247183,-500.0,0.00019726,3]
[347581209,1735924247192,-816.77,0.00019726,3]
[347581210,1735924247201,-1341.5,0.00019726,3]
[347581211,1735924247211,-500.0,0.00019726,3]
[347581212,1735924247220,-534.89940103,0.00019726,3]
[347581213,1735924247229,-500.0,0.00019726,3]
[347581214,1735924247239,-500.0,0.00019726,3]
[347581215,1735924247248,-500.0,0.00019726,3]
[347581216,1735924247258,-500.0,0.00019726,3]
[347581217,1735924247267,-1055.67,0.00019726,3]
[347581218,1735924247278,-500.0,0.00019726,3]
[347581219,1735924247288,-500.0,0.00019726,3]
[347581220,1735924247297,-500.0,0.00019726,3]
[347581221,1735924247307,-500.0,0.00019726,3]
[347581222,1735924247317,-502.28385663,0.00019726,3]
[347581223,1735924247327,-500.0,0.00019726,3]
[347581224,1735924247337,-500.0,0.00019726,3]
[347581225,1735924247346,-500.0,0.00019726,3]
[347581226,1735924247355,-500.0,0.00019726,3]
[347581227,1735924247365,-500.0,0.00019726,3]
[347581228,1735924247376,-180.80419989,0.00019726,3]
[347581229,1735924247386,-498.60529947,0.00019726,3]
[347581230,1735924247395,-1082.29,0.00019726,3]
[347581231,1735924247405,-500.0,0.00019726,3]
[347581232,1735924247414,-500.0,0.00019726,3]
[347581233,1735924247424,-35051.82,0.00019726,3]
[347581234,1735924247433,-511.78,0.00019726,3]
[347581235,1735924247442,-500.0,0.00019726,3]
[347581236,1735924247452,-500.0,0.00019726,3]
[347581237,1735924247461,-2754.83,0.00019726,3]
[347581238,1735924247471,-500.0,0.00019726,3]
[347581239,1735924247480,-2325.63,0.00019726,3]
[347581240,1735924247489,-500.0,0.00019726,3]
[347581241,1735924247499,-526.77,0.00019726,3]
[347581242,1735924247513,-500.0,0.00019726,3]
[347581243,1735924247522,-500.0,0.00019726,3]
[347581244,1735924247531,-943.71,0.00019726,3]
[347581245,1735924247541,-500.0,0.00019726,3]
[347581246,1735924247550,-500.0,0.00019726,3]
[347581247,1735924247560,-500.0,0.00019726,3]
[347581248,1735924247569,-521.93,0.00019726,3]
[347581249,1735924247579,-500.0,0.00019726,3]
[347581250,1735924247589,-500.0,0.00019726,3]
[347581251,1735924247600,-1215.82,0.00019726,3]
[347581252,1735924247609,-500.0,0.00019726,3]
[347581253,1735924247619,-3168.56,0.00019726,3]
[347581254,1735924247628,-500.0,0.00019726,3]
[347581255,1735924247638,-500.0,0.00019726,3]
[347581256,1735924247648,-500.0,0.00019726,3]
[347581257,1735924247657,-500.0,0.00019726,3]
[347581258,1735924247667,-500.0,0.00019726,3]
[347581259,1735924247677,-500.0,0.00019726,3]
[347581260,1735924247687,-500.0,0.00019726,3]
[347581261,1735924247698,-500.0,0.00019726,3]
[347581262,1735924247708,-500.0,0.00019726,3]
[347581263,1735924247718,-577.23,0.00019726,3]
[347581264,1735924247728,-500.0,0.00019726,3]
[347581265,1735924247738,-1040.34,0.00019726,3]
[347581266,1735924247748,-500.0,0.00019726,3]
[347581267,1735924247758,-500.0,0.00019726,3]
[347581268,1735924247767,-500.0,0.00019726,3]
[347581269,1735924247777,-500.0,0.00019726,3]
[347581270,1735924247787,-1302.98,0.00019726,3]
[347581271,1735924247797,-571.03290203,0.00019726,3]
[347581272,1735924247806,-500.0,0.00019726,3]
[347581273,1735924247815,-500.0,0.00019726,3]
[347581274,1735924247826,-500.0,0.00019726,3]
[347581275,1735924247837,-500.0,0.00019726,3]
[347581276,1735924247847,-500.0,0.00019726,3]
[347581277,1735924247857,-1351.62,0.00019726,3]
[347581278,1735924247866,-500.0,0.00019726,3]
[347581279,1735924247877,-500.0,0.00019726,2]
[347581280,1735924247887,-225.61804174,0.00019726,3]
[347581281,1735924247897,-1051.97,0.00019726,3]
[347581282,1735924247907,-1167.27,0.00019726,3]
[347581283,1735924247916,-500.0,0.00019726,3]
[347581284,1735924247926,-503.03967367,0.00019726,3]
[347581285,1735924247936,-500.0,0.00019726,3]
[347581286,1735924247945,-500.0,0.00019726,3]
[347581287,1735924247955,-500.0,0.00019726,3]
[347581288,1735924247965,-537.08,0.00019726,3]
[347581289,1735924247974,-500.0,0.00019726,3]
[347581290,1735924247983,-500.0,0.00019726,3]
[347581291,1735924247993,-5069.54,0.00019726,3]
[347581292,1735924248002,-500.0,0.00019726,3]
[347581293,1735924248011,-7535.86,0.00019726,3]
[347581294,1735924248020,-500.0,0.00019726,3]
[347581295,1735924248030,-151.0,0.000198,2]
[347581296,1735924248040,-666.00000002,0.000199,2]
[347581297,1735924248050,-189.36514384,0.000199,2]
[347581298,1735924248059,-295.1084241,0.00019935,2]
[347581299,1735924248069,-897.11,0.00019999,3]
[347581300,1735924248078,-897.11,0.00019999,3]
[347581301,1735924248088,-897.11,0.00019999,3]
[347581302,1735924248097,-294.82156447,0.00019999,7]
[347581303,1735924248107,-500.0,0.0002,3]
[347581304,1735924248117,-602.29,0.0002,3]
[347581305,1735924248127,-5692.0,0.0002,2]
[347581306,1735924248136,-500.0,0.0002,3]
[347581307,1735924248146,-500.0,0.0002,3]
[347581308,1735924248156,-500.0,0.0002,3]
[347581309,1735924248166,-500.0,0.0002,3]
[347581310,1735924248175,-500.0,0.0002,3]
[347581311,1735924248186,-500.0,0.0002,3]
[347581312,1735924248196,-500.0,0.0002,3]
[347581313,1735924248205,-500.0,0.0002,3]
[347581314,1735924248214,-500.0,0.0002,3]
[347581315,1735924248224,-473.21881291,0.0002,3]
[347581316,1735924248234,-500.0,0.0002,3]
[347581317,1735924248244,-500.0,0.0002,3]
[347581318,1735924248253,-500.0,0.0002,3]
[347581319,1735924248263,-1037.83,0.0002,3]
[347581320,1735924248272,-500.0,0.0002,3]
[347581321,1735924248282,-2742.66,0.0002,3]
[347581322,1735924248292,-500.0,0.0002,3]
[347581323,1735924248302,-607.65,0.0002,3]
[347581324,1735924248312,-500.0,0.0002,2]
[347581325,1735924248321,-500.0,0.0002,3]
[347581326,1735924248331,-500.0,0.0002,3]
[347581327,1735924248340,-500.0,0.0002,3]
[347581328,1735924248350,-361.84993862,0.0002,3]
[347581329,1735924248360,-500.0,0.0002,3]
[347581330,1735924248372,-500.0,0.0002,3]
[347581331,1735924248382,-1185.66,0.0002,3]
[347581332,1735924248391,-500.0,0.0002,3]
[347581333,1735924248401,-500.0,0.0002,3]
[347581334,1735924248411,-500.0,0.0002,3]
[347581335,1735924248421,-500.0,0.0002,3]
[347581336,1735924248431,-959.66,0.0002,3]
[347581337,1735924248440,-500.0,0.0002,3]
[347581338,1735924248450,-500.0,0.0002,3]
[347581339,1735924248459,-500.0,0.0002,3]
[347581340,1735924248469,-500.0,0.0002,3]
[347581341,1735924248479,-500.0,0.0002,3]
[347581342,1735924248488,-500.0,0.0002,3]
[347581343,1735924248499,-961.58,0.0002,3]
[347581344,1735924248513,-500.0,0.0002,3]
[347581345,1735924248523,-223.55078161,0.0002,3]
[347581346,1735924248532,-500.0,0.0002,3]
[347581347,1735924248543,-500.0,0.0002,3]
[347581348,1735924248552,-4013.46,0.0002,3]
[347581349,1735924248561,-500.0,0.0002,3]
[347581350,1735924248571,-500.0,0.0002,3]
[347581351,1735924248582,-994.81,0.0002,3]
[347581352,1735924248593,-618.24,0.0002,3]
[347581353,1735924248607,-500.0,0.0002,3]
[347581354,1735924248616,-818.27,0.0002,3]
[347581355,1735924248766,-500.0,0.0002,3]
[347581356,1735924248777,-500.0,0.0002,3]
[347581357,1735924248787,-544.85,0.0002,3]
[347581358,1735924248796,-500.0,0.0002,3]
[347581359,1735924248806,-500.0,0.0002,3]
[347581360,1735924248815,-500.0,0.0002,3]
[347581361,1735924248825,-323.87287048,0.0002,3]
[347581362,1735924248835,-285.97012971,0.0002,3]
[347581363,1735924248844,-8413.22,0.0002,2]
[347581364,1735924248854,-500.0,0.0002,3]
[347581365,1735924248863,-728.95,0.0002,3]
[347581366,1735924248874,-500.0,0.0002,3]
[347581367,1735924248883,-503.2585921,0.0002,3]
[347581368,1735924248893,-500.0,0.0002,3]
[347581369,1735924248902,-609.31,0.0002,3]
[347581370,1735924248912,-500.0,0.0002,3]
[347581371,1735924248922,-503.24660531,0.0002,3]
[347581372,1735924248931,-500.0,0.0002,3]
[347581373,1735924248941,-500.0,0.0002,3]
[347581374,1735924248950,-10053.08,0.0002,2]
[347581375,1735924248960,-2406.38,0.0002,2]
[347581376,1735924248969,-500.0,0.0002,3]
[347581377,1735924248979,-2229.74,0.0002,3]
[347581378,1735924248989,-500.0,0.0002,3]
[347581379,1735924248998,-816.77,0.0002,3]
[347581380,1735924249008,-1341.5,0.0002,3]
[347581381,1735924249017,-500.0,0.0002,3]
[347581382,1735924249028,-502.64140384,0.0002,3]
[347581383,1735924249038,-549.8528627,0.0002,3]
[347581384,1735924249048,-500.0,0.0002,3]
[347581385,1735924249058,-500.0,0.0002,3]
[347581386,1735924249067,-1055.67,0.0002,3]
[347581387,1735924249077,-634.65024189,0.0002,3]
[347581388,1735924249088,-500.0,0.0002,3]
[347581389,1735924249097,-500.0,0.0002,3]
[347581390,1735924249108,-500.0,0.0002,3]
[347581391,1735924249118,-500.0,0.0002,3]
[347581392,1735924249129,-500.0,0.0002,3]
[347581393,1735924249139,-504.98637078,0.0002,3]
[347581394,1735924249149,-500.0,0.0002,3]
[347581395,1735924249160,-500.0,0.0002,3]
[347581396,1735924249170,-1082.29,0.0002,3]
[347581397,1735924249180,-500.0,0.0002,3]
[347581398,1735924249191,-500.0,0.0002,3]
[347581399,1735924249201,-35051.82,0.0002,3]
[347581400,1735924249211,-511.78,0.0002,3]
[347581401,1735924249221,-500.0,0.0002,3]
[347581402,1735924249231,-500.0,0.0002,3]
[347581403,1735924249240,-2754.83,0.0002,3]
[347581404,1735924249251,-500.0,0.0002,3]
[347581405,1735924249260,-2325.63,0.0002,3]
[347581406,1735924249270,-501.40697881,0.0002,3]
[347581407,1735924249280,-526.77,0.0002,3]
[347581408,1735924249290,-500.0,0.0002,3]
[347581409,1735924249300,-943.71,0.0002,3]
[347581410,1735924249310,-500.0,0.0002,3]
[347581411,1735924249319,-500.0,0.0002,3]
[347581412,1735924249329,-196.72615854,0.0002,3]
[347581413,1735924249338,-521.93,0.0002,3]
[347581414,1735924249348,-500.0,0.0002,3]
[347581415,1735924249358,-500.0,0.0002,3]
[347581416,1735924249368,-1215.82,0.0002,3]
[347581417,1735924249379,-3168.56,0.0002,3]
[347581418,1735924249388,-500.0,0.0002,3]
[347581419,1735924249398,-500.0,0.0002,3]
[347581420,1735924249407,-500.0,0.0002,3]
[347581421,1735924249417,-500.0,0.0002,3]
[347581422,1735924249426,-500.0,0.0002,3]
[347581423,1735924249436,-500.0,0.0002,3]
[347581424,1735924249446,-500.0,0.0002,3]
[347581425,1735924249455,-500.0,0.0002,3]
[347581426,1735924249465,-577.23,0.0002,3]
[347581427,1735924249475,-500.0,0.0002,3]
[347581428,1735924249484,-1040.34,0.0002,3]
[347581429,1735924249493,-500.0,0.0002,3]
[347581430,1735924249504,-500.0,0.0002,3]
[347581431,1735924249515,-500.0,0.0002,3]
[347581432,1735924249524,-500.0,0.0002,3]
[347581433,1735924249533,-1302.98,0.0002,3]
[347581434,1735924249543,-500.0,0.0002,3]
[347581435,1735924249553,-500.0,0.0002,3]
[347581436,1735924249562,-500.0,0.0002,3]
[347581437,1735924249571,-500.0,0.0002,3]
[347581438,1735924249582,-500.0,0.0002,3]
[347581439,1735924249593,-1351.62,0.0002,3]
[347581440,1735924249602,-500.0,0.0002,3]
[347581441,1735924249612,-500.0,0.0002,2]
[347581442,1735924249623,-1051.97,0.0002,3]
[347581443,1735924249633,-1167.27,0.0002,3]
[347581444,1735924249642,-500.0,0.0002,3]
[347581445,1735924249652,-500.0,0.0002,3]
[347581446,1735924249661,-500.0,0.0002,3]
[347581447,1735924249671,-500.0,0.0002,3]
[347581448,1735924249681,-537.08,0.0002,3]
[347581449,1735924249691,-500.0,0.0002,3]
[347581450,1735924249700,-5069.54,0.0002,3]
[347581451,1735924249711,-500.0,0.0002,3]
[347581452,1735924249720,-500.0,0.0002,3]
[347581453,1735924249729,-7535.86,0.0002,3]
[347581454,1735924249738,-506.98458546,0.0002,3]
[347581455,1735924249748,-189.3651438,0.00020003,2]
[347581456,1735924249757,-1200.0,0.0002004,2]
[347581457,1735924249767,-296.27,0.0002004,2]
[347581458,1735924249776,-500.0,0.0002004,2]
[347581459,1735924249786,-189.3651438,0.00020107,2]
[347581460,1735924249795,-151.0,0.000202,3]
[347581461,1735924249804,-189.3651438,0.0002021,2]
[347581462,1735924249815,-897.11,0.00020272,3]
[347581463,1735924249825,-897.11,0.00020272,3]
[347581464,1735924249835,-897.11,0.00020272,3]
[347581465,1735924249845,-160.0,0.00020272,2]
[347581466,1735924249855,-500.0,0.00020273,3]
[347581467,1735924249864,-602.29,0.00020273,3]
[347581468,1735924249875,-500.0,0.00020273,3]
[347581469,1735924249884,-500.0,0.00020273,3]
[347581470,1735924249894,-500.0,0.00020273,3]
[347581471,1735924249903,-500.0,0.00020273,3]
[347581472,1735924249912,-500.0,0.00020273,3]
[347581473,1735924249922,-500.0,0.00020273,3]
[347581474,1735924249932,-500.0,0.00020273,3]
[347581475,1735924249943,-500.0,0.00020273,3]
[347581476,1735924249952,-500.0,0.00020273,3]
[347581477,1735924249961,-500.0,0.00020273,3]
[347581478,1735924249970,-500.0,0.00020273,3]
[347581479,1735924249980,-500.0,0.00020273,3]
[347581480,1735924249989,-1037.83,0.00020273,3]
[347581481,1735924250000,-500.0,0.00020273,3]
[347581482,1735924250009,-2742.66,0.00020273,3]
[347581483,1735924250018,-500.0,0.00020273,3]
[347581484,1735924250028,-607.65,0.00020273,3]
[347581485,1735924250037,-500.0,0.00020273,2]
[347581486,1735924250047,-500.0,0.00020273,3]
[347581487,1735924250056,-500.0,0.00020273,3]
[347581488,1735924250065,-513.68988886,0.00020273,3]
[347581489,1735924250075,-500.0,0.00020273,3]
[347581490,1735924250085,-500.0,0.00020273,3]
[347581491,1735924250095,-1185.66,0.00020273,3]
[347581492,1735924250104,-500.0,0.00020273,3]
[347581493,1735924250114,-500.0,0.00020273,3]
[347581494,1735924250126,-500.0,0.00020273,3]
[347581495,1735924250135,-342.16437428,0.00020273,3]
[347581496,1735924250145,-959.66,0.00020273,3]
[347581497,1735924250154,-500.0,0.00020273,3]
[347581498,1735924250165,-500.0,0.00020273,3]
[347581499,1735924250174,-219.71367862,0.00020273,3]
[347581500,1735924250183,-500.0,0.00020273,3]
[347581501,1735924250193,-278.66673372,0.00020273,3]
[347581502,1735924250202,-500.0,0.00020273,3]
[347581503,1735924250212,-961.58,0.00020273,3]
[347581504,1735924250222,-500.0,0.00020273,3]
[347581505,1735924250232,-500.0,0.00020273,3]
[347581506,1735924250241,-500.0,0.00020273,3]
[347581507,1735924250251,-4013.46,0.00020273,3]
[347581508,1735924250261,-500.0,0.00020273,3]
[347581509,1735924250270,-500.0,0.00020273,3]
[347581510,1735924250280,-994.81,0.00020273,3]
[347581511,1735924250289,-500.0,0.00020273,3]
[347581512,1735924250298,-818.27,0.00020273,3]
[347581513,1735924250308,-500.0,0.00020273,3]
[347581514,1735924250318,-500.0,0.00020273,3]
[347581515,1735924250327,-544.85,0.00020273,3]
[347581516,1735924250337,-500.0,0.00020273,3]
[347581517,1735924250346,-533.7356261,0.00020273,3]
[347581518,1735924250356,-500.0,0.00020273,3]
[347581519,1735924250365,-500.0,0.00020273,3]
[347581520,1735924250377,-728.95,0.00020273,3]
[347581521,1735924250387,-500.0,0.00020273,3]
[347581522,1735924250398,-500.0,0.00020273,3]
[347581523,1735924250409,-609.31,0.00020273,3]
[347581524,1735924250419,-500.0,0.00020273,3]
[347581525,1735924250428,-500.0,0.00020273,3]
[347581526,1735924250438,-500.0,0.00020273,3]
[347581527,1735924250447,-500.0,0.00020273,3]
[347581528,1735924250456,-2229.74,0.00020273,3]
[347581529,1735924250466,-500.0,0.00020273,3]
[347581530,1735924250475,-816.77,0.00020273,3]
[347581531,1735924250485,-1341.5,0.00020273,3]
[347581532,1735924250495,-500.0,0.00020273,3]
[347581533,1735924250508,-500.0,0.00020273,3]
[347581534,1735924250517,-500.0,0.00020273,3]
[347581535,1735924250527,-1055.67,0.00020273,3]
[347581536,1735924250537,-500.0,0.00020273,3]
[347581537,1735924250547,-500.0,0.00020273,3]
[347581538,1735924250558,-500.0,0.00020273,3]
[347581539,1735924250567,-500.0,0.00020273,3]
[347581540,1735924250576,-500.0,0.00020273,3]
[347581541,1735924250587,-500.0,0.00020273,3]
[347581542,1735924250597,-500.0,0.00020273,3]
[347581543,1735924250607,-1082.29,0.00020273,3]
[347581544,1735924250616,-500.0,0.00020273,3]
[347581545,1735924250627,-508.25381816,0.00020273,3]
[347581546,1735924250636,-35051.82,0.00020273,3]
[347581547,1735924250645,-511.78,0.00020273,3]
[347581548,1735924250655,-500.0,0.00020273,3]
[347581549,1735924250664,-500.0,0.00020273,3]
[347581550,1735924250674,-2754.83,0.00020273,3]
[347581551,1735924250684,-500.0,0.00020273,3]
[347581552,1735924250693,-2325.63,0.00020273,3]
[347581553,1735924250703,-526.77,0.00020273,3]
[347581554,1735924250713,-943.71,0.00020273,3]
[347581555,1735924250723,-500.0,0.00020273,3]
[347581556,1735924250733,-500.0,0.00020273,3]
[347581557,1735924250743,-521.93,0.00020273,3]
[347581558,1735924250752,-500.0,0.00020273,3]
[347581559,1735924250762,-1215.82,0.00020273,3]
[347581560,1735924250771,-3168.56,0.00020273,3]
[347581561,1735924250781,-500.0,0.00020273,3]
[347581562,1735924250791,-500.0,0.00020273,3]
[347581563,1735924250800,-500.0,0.00020273,3]
[347581564,1735924250809,-500.0,0.00020273,3]
[347581565,1735924250819,-500.0,0.00020273,3]
[347581566,1735924250828,-425.18890014,0.00020273,3]
[347581567,1735924250837,-500.0,0.00020273,3]
[347581568,1735924250847,-500.0,0.00020273,3]
[347581569,1735924250856,-577.23,0.00020273,3]
[347581570,1735924250866,-500.0,0.00020273,3]
[347581571,1735924250879,-1040.34,0.00020273,3]
[347581572,1735924250890,-500.0,0.00020273,3]
[347581573,1735924250900,-500.0,0.00020273,3]
[347581574,1735924250909,-500.0,0.00020273,3]
[347581575,1735924250919,-500.0,0.00020273,3]
[347581576,1735924250928,-1302.98,0.00020273,3]
[347581577,1735924250937,-500.0,0.00020273,3]
[347581578,1735924250947,-500.0,0.00020273,3]
[347581579,1735924250956,-500.0,0.00020273,3]
[347581580,1735924250965,-1351.62,0.00020273,3]
[347581581,1735924250974,-500.0,0.00020273,3]
[347581582,1735924250984,-1051.97,0.00020273,3]
[347581583,1735924250993,-500.0,0.00020273,2]
[347581584,1735924251003,-1167.27,0.00020273,3]
[347581585,1735924251012,-344.73453975,0.00020273,3]
[347581586,1735924251021,-500.0,0.00020273,3]
[347581587,1735924251031,-500.0,0.00020273,3]
[347581588,1735924251041,-500.0,0.00020273,3]
[347581589,1735924251050,-537.08,0.00020273,3]
[347581590,1735924251060,-500.0,0.00020273,3]
[347581591,1735924251070,-5069.54,0.00020273,3]
[347581592,1735924251079,-500.0,0.00020273,3]
[347581593,1735924251089,-500.0,0.00020273,3]
[347581594,1735924251098,-7535.86,0.00020273,3]
[347581595,1735924251107,-189.3651438,0.00020314,2]
[347581596,1735924251117,-189.3651438,0.00020417,2]
[347581597,1735924251130,-176.642263,0.00020447,2]
[347581598,1735924251140,-151.0,0.000205,4]
[347581599,1735924251150,-189.3651438,0.00020521,2]
[347581600,1735924251160,-2217.96132577,0.00020531,2]
[347581601,1735924251170,-897.11,0.00020546,3]
[347581602,1735924251180,-897.11,0.00020546,3]
[347581603,1735924251189,-897.11,0.00020546,3]
[347581604,1735924251200,-897.11,0.00020546,3]
[347581605,1735924251211,-897.11585888,0.00020546,3]
[347581606,1735924251221,-160.44682479,0.00020546,2]
[347581607,1735924251231,-500.0,0.00020547,3]
[347581608,1735924251240,-602.29,0.00020547,3]
[347581609,1735924251250,-500.0,0.00020547,3]
[347581610,1735924251260,-500.0,0.00020547,3]
[347581611,1735924251270,-467.62458307,0.00020547,3]
[347581612,1735924251280,-500.0,0.00020547,3]
[347581613,1735924251290,-500.0,0.00020547,3]
[347581614,1735924251300,-500.0,0.00020547,3]
[347581615,1735924251309,-500.0,0.00020547,3]
[347581616,1735924251427,-500.0,0.00020547,3]
[347581617,1735924251437,-500.0,0.00020547,3]
[347581618,1735924251446,-435.35186093,0.00020547,3]